Cogmind - Beta 15 @@@ ROGUE MODE // 2025.05.11 @ 14:22:45 Player: Phosphophyllite Result: Destroyed by SO-48G(R) with Subdweller Laser Performance ------------- Evolutions (0) 0 Regions Visited (2) 400 Robots Destroyed (9) 45 Value Destroyed (209) 209 Prototype IDs (0) 0 Alien Tech Used (0) 0 Bonus (0) 0 TOTAL SCORE: 654 Bonus ------- None Cogmind --------- Core Integrity 0/250 Matter 280/300 Energy 18/250 System Corruption 0% Temperature Cool (12) Movement Core (350) Ox6 Location -10/Subcaves Parts ------- > --- POWER (1) -------- Ion Engine > --- PROPULSION (2) --- (None) > --- UTILITY (2) ------ Small Storage Unit Seismic Detector > --- WEAPON (2) ------- Subdweller Beam Cannon > --- INVENTORY (8) ---- Light Treads Aluminum Leg Improved Terrain Scanner Assault Rifle Mining Laser Peak State ------------ > --- POWER ------------ Ion Engine > --- PROPULSION ------- Light Treads Light Treads > --- UTILITY ---------- Small Storage Unit Seismic Detector > --- WEAPON ----------- Riot Gun Riot Gun > --- INVENTORY -------- Ion Engine Light Treads Aluminum Leg Improved Terrain Scanner Subdweller Laser Assault Rifle Mining Laser Flamer [Rating: 12] Favorites ----------- Power Ion Engine Engine Ion Engine Propulsion Light Treads Treads Light Treads Leg Aluminum Leg Utility Small Storage Unit Device Seismic Detector Storage Small Storage Unit Weapon Medium Laser Energy Gun Medium Laser Energy Cannon Subdweller Beam Cannon Ballistic Gun Assault Rifle Special Weapon Mining Laser Build | -11 -10 -10 ------- Run | Yrd Mat Sub Slots Evolved . | . . . Power . | . . . Propulsion . | . . . Utility . | . . . Weapon . | . . . Parts Attached 15 | 8 1 6 Power 2 | 1 . 1 Engine 2 | 1 . 1 Core . | . . . Reactor . | . . . Propulsion 3 | 3 . . Treads 2 | 2 . . Leg 1 | 1 . . Wheel . | . . . Hover . | . . . Flight . | . . . Utility 2 | 2 . . Device 1 | 1 . . Storage 1 | 1 . . Processor . | . . . Hackware . | . . . Protection . | . . . Artifact . | . . . Weapon 8 | 2 1 5 Energy Gun 4 | 1 . 3 Energy Cannon 1 | . . 1 Ballistic Gun 1 | 1 . . Ballistic Cannon . | . . . Launcher . | . . . Special Weapon 2 | . 1 1 Impact Weapon . | . . . Slashing Weapon . | . . . Piercing Weapon . | . . . Special Melee Weapon . | . . . Unidentified Prototypes . | . . . Parts Lost 8 | . . 8 Power 1 | . . 1 Propulsion 2 | . . 2 Utility . | . . . Weapon 5 | . . 5 Highest Loss Streak 7 | . . 7 To Critical Strikes 1 | . . 1 Average Backups 6 | 2 4 7 Power . | . 1 . Propulsion 1 | . 1 1 Utility 1 | . 1 1 Weapon 2 | . 1 3 Tool/Special . | . . . Unused Backups 5 | . . 5 Power . | . . . Propulsion 2 | . . 2 Utility 2 | . . 2 Weapon 1 | . . 1 Tool/Special . | . . . Average Slot Usage (%) 97 | . 100 97 Engine 13 | . 14 13 Treads 27 | . 28 26 Device 14 | . 14 14 Storage 14 | . 14 14 Energy Gun 18 | . 14 18 Ballistic Gun 3 | . 13 2 Special Weapon 4 | . 1 5 Peak Build Rating 12 | 7 7 12 Average Rating 8 | 5 7 9 On Entrance 4 | . 7 7 Naked Turns . | . . . Heaviest Build 17 | 15 15 17 Greatest Support 40 | 40 40 40 Greatest Overweight (x) 3 | . . 3 Average Overweight (x) . | . . . Largest Inventory Capacity 8 | 8 8 8 Average Capacity 7 | 6 8 8 Most Carried 8 | 4 6 8 Average Carried 6 | 2 4 7 Final Capacity 8 | 8 8 8 Final Carried 6 | 4 6 5 Class Distribution -------------------- 100% | Mutant Dominant Class ---------------- Mutant | -10/Materials Mutant | -10/Subcaves Resources | -11 -10 -10 ----------- Run | Yrd Mat Sub Matter Collected 403 | 243 . 160 Remotely . | . . . Salvage Created 285 | 40 . 245 Parts 18 | 5 . 13 Haulers Intercepted . | . . . Recyclers Shooed . | . . . Parts Field Recycled . | . . . Retrieved Matter . | . . . Parts Self-Destructed 3 | . . 3 Prevented . | . . . Kills | -11 -10 -10 ------- Run | Yrd Mat Sub Combat Hostiles Destroyed 7 | . . 7 Guns 7 | . . 7 Classes Destroyed 4 | 1 . 3 Tunneler 2 | 2 . . Swarmer 3 | . . 3 Sentry 1 | . . 1 Subdweller 3 | . . 3 Best Kill Streak 4 | 1 . 4 Combat Bots Only 4 | . . 4 Max Kills in Single Turn 2 | 1 . 2 Gunslinging 1 | . . 1 Exploded . | . . . Melee . | . . . Uniques/NPCs Destroyed . | . . . Combat | -11 -10 -10 -------- Run | Yrd Mat Sub Hostile Shots Fired 74 | . . 74 Missed 12 | . . 12 Hits 62 | . . 62 Projectile 62 | . . 62 Critical Strikes 2 | . . 2 Damage Taken 1047 | . . 1047 Core 262 | . . 262 Absorbed by Shields . | . . . Core Remaining (%) 100 | 100 . . Volleys Fired 67 | 5 1 61 Largest 2 | 2 1 2 Hottest 160 | 70 100 160 Shots Fired 96 | 10 1 85 Gun 63 | 10 . 53 Cannon 3 | . . 3 Launcher . | . . . Special 30 | . 1 29 Kinetic 16 | 5 . 11 Thermal 56 | 5 1 50 Explosive . | . . . Electromagnetic 24 | . . 24 Robot Hit Streak 25 | 4 . 25 Robot Miss Streak 3 | 1 . 3 Penetration Max . | . . . Secondary Targets 2 | . . 2 Max Gunslinging Chain 1 | . . 1 Shots Hit Robots 47 | 7 . 40 Core Hits 15 | 2 . 13 Critical Kills . | . . . Critical Parts Destroyed . | . . . Critical Strikes 1 | 1 . . Burn 1 | 1 . . Melee Attacks . | . . . Impact . | . . . Slashing . | . . . Piercing . | . . . Sneak Attacks . | . . . Combat Hostiles . | . . . Follow-up Attacks . | . . . Damage Inflicted 600 | 88 . 512 Guns 502 | 88 . 414 Cannons 88 | . . 88 Explosions . | . . . Melee . | . . . Ramming . | . . . Kinetic 123 | 38 . 85 Thermal 296 | 50 . 246 Explosive . | . . . Electromagnetic 181 | . . 181 Impact . | . . . Slashing . | . . . Piercing . | . . . Highest Corruption . | . . . Average Corruption . | . . . Corruption Purged . | . . . Corruption Blocked . | . . . Overload Shots . | . . . Overflow Damage . | . . . Projectiles . | . . . Explosions . | . . . Melee . | . . . Knockbacks . | . . . Impact . | . . . Kinetic . | . . . Secondary . | . . . Self-Inflicted Damage . | . . . Shots . | . . . Rammed . | . . . Targets Rammed . | . . . Kicked . | . . . Crushed . | . . . Highest Temperature 36 | 36 20 8 Average Temperature 12 | 16 10 3 Received Heat Transfer 243 | . . 243 Siege Activations . | . . . Martial Activations . | . . . Shielding Activations . | . . . Robots Disrupted . | . . . Combat Hostiles . | . . . Robots Corrupted . | . . . Combat Hostiles . | . . . Parts Fried . | . . . Impact Corruptions . | . . . Robots Melted . | . . . Combat Hostiles . | . . . Parts Melted 2 | . . 2 Heat Transferred 796 | 222 . 574 Parts Sabotaged . | . . . Parts Stolen . | . . . Parts Stripped . | . . . Power Chain Reactions . | . . . Alert | -11 -10 -10 ------- Run | Yrd Mat Sub Maximum Alert Level . | . . . Low Security (%) 100 | 100 100 . Level 1 . | . . . Level 2 . | . . . Level 3 . | . . . Level 4 . | . . . Level 5 . | . . . High Security . | . . . Max Security . | . . . Peak Influence 8 | 5 8 . Initial . | . . . Average . | . . . Influence Increases 109 | 10 9 90 Destroy 0b10 Robot/C 80 | . . 80 Destroy 0b10 Robot/NC 10 | 10 . . Destroy Leader 10 | . . 10 Successful Hack 8 | . 8 . Destroy Structure 1 | . 1 . Influence Decreases 109 | 10 8 91 Entered New Map 1 | . . 1 Time Decay 108 | 10 8 90 Squads Dispatched . | . . . Investigation . | . . . Extermination . | . . . Reinforcement . | . . . Assault . | . . . Garrison . | . . . Intercept . | . . . Searches Triggered . | . . . Construction Impeded . | . . . Haulers Reinforced . | . . . Active Scanning Responses . | . . . Cargo Convoy Interrupts . | . . . Stealth | -11 -10 -10 --------- Run | Yrd Mat Sub Distress Signals . | . . . Communications Jammed . | . . . Distress Signals . | . . . Times Spotted 8 | . . 8 Peak Tracking Total 3 | . . 3 Tactical Retreats . | . . . Traps | -11 -10 -10 ------- Run | Yrd Mat Sub Traps Triggered . | . . . Indirectly . | . . . Trap Hack Attempts . | . . . Triggered . | . . . Disarmed . | . . . Reprogrammed . | . . . Reused . | . . . Traps Extracted . | . . . Installed . | . . . Triggered . | . . . Machines | -11 -10 -10 ---------- Run | Yrd Mat Sub Machines Disabled . | . . . Max in Single Turn . | . . . Machines Repaired . | . . . Machines Dismantled . | . . . Machines Sabotaged . | . . . Overloaded Fab Kills . | . . . Hacking | -11 -10 -10 --------- Run | Yrd Mat Sub Machines Accessed 1 | . 1 . Terminals 1 | . 1 . Fabricators . | . . . Repair Stations . | . . . Recycling Units . | . . . Scanalyzers . | . . . Garrison Access . | . . . Total Hacks 1 | . 1 . Successful 1 | . 1 . Failed . | . . . Catastrophic . | . . . Database Lockouts . | . . . Manual 1 | . 1 . Terminals 1 | . 1 . Fabricators . | . . . Repair Stations . | . . . Recycling Units . | . . . Scanalyzers . | . . . Garrison Access . | . . . Terminal Hacks 1 | . 1 . Branch Access Points 1 | . 1 . Fabricator Hacks . | . . . Repair Station Hacks . | . . . Recycling Unit Hacks . | . . . Scanalyzer . | . . . Garrison Access Hacks . | . . . Unauthorized Hacks . | . . . Terminals . | . . . Fabricators . | . . . Repair Stations . | . . . Recycling Units . | . . . Scanalyzers . | . . . Garrison Access . | . . . Data Cores Recovered . | . . . Used . | . . . Hacking Detections . | . . . Full Trace Events . | . . . Feedback Events . | . . . Feedback Blocked . | . . . Robot Schematics Acquired . | . . . Robots Built . | . . . Authchips . | . . . Time . | . . . Total Robot Build Rating . | . . . Part Schematics Acquired . | . . . Parts Built . | . . . Authchips . | . . . Time . | . . . Total Part Build Rating . | . . . Parts Repaired . | . . . Time . | . . . Parts Recycled . | . . . Recycled Matter . | . . . Retrieved Matter . | . . . Retrieved Components . | . . . Parts Scanalyzed . | . . . Part Schematics Acquired . | . . . Parts Damaged . | . . . Bothacking | -11 -10 -10 ------------ Run | Yrd Mat Sub Used RIF Installer . | . . . Robots Hacked . | . . . Non-combat . | . . . Combat . | . . . Robot Hacks Applied . | . . . Relay Couplers Released . | . . . Fabnet Peak Effective % . | . . . Robots Rewired . | . . . Allies Hacked . | . . . Hacks Repelled . | . . . Allies | -11 -10 -10 -------- Run | Yrd Mat Sub Total Allies . | . . . Largest Group . | . . . Highest-Rated Group . | . . . Highest-Rated Ally . | . . . Total Orders . | . . . Ally Attacks . | . . . Total Damage . | . . . Kills . | . . . Allies Corrupted . | . . . Allies Melted . | . . . Intel | -11 -10 -10 ------- Run | Yrd Mat Sub Active Infowar (turns) 961 | 25 134 802 Seismic 961 | 25 134 802 Robot Analysis Total . | . . . Derelict Logs Recovered 1 | . . 1 Drone Launches . | . . . Drone Recoveries . | . . . Exploration | -11 -10 -10 ------------- Run | Yrd Mat Sub Turns Passed 1046 | 110 134 802 Spaces Moved 482 | 55 75 352 Core 6 | 4 . 2 Treads 467 | 42 75 350 Legs 9 | 9 . . Wheels . | . . . Hover . | . . . Flight . | . . . Fastest Speed 50 | 50 160 160 Average Speed 158 | 145 160 160 Slowest Speed 200 | 160 160 200 Overloaded Moves . | . . . Propulsion Burnouts . | . . . Robots Hopped . | . . . Potential Cave-ins . | . . . Cave-ins Triggered . | . . . Exploration Rate (%) 12 | 5 11 20 Regions Visited 2 Branch Regions 1 Pre-discovered Areas . | . . . Known Exits Taken . | . . . Unknown Exits Taken 2 | 1 1 . Scrap Searched . | . . . Spaces Dug 1 | . 1 . Terrain Destroyed 1 | . 1 . Melee . | . . . Projectile 1 | . 1 . AOE . | . . . Terrain Rammed . | . . . Walls Destroyed . | . . . Machines Disabled . | . . . Actions | -11 -10 -10 --------- Run | Yrd Mat Sub Total 606 | 72 86 448 Wait 25 | . 8 17 Move 480 | 54 74 352 Hop . | . . . Pick Up 11 | 5 2 4 Fast Attach 9 | 6 . 3 Attach 4 | 1 . 3 Detach . | . . . Swap 7 | 1 1 5 Drop 3 | . . 3 Fire 67 | 5 1 61 Melee . | . . . Ram . | . . . Kick . | . . . Crush . | . . . Escape Stasis . | . . . Rewire . | . . . Trap . | . . . Miscellaneous . | . . . Route ------- -11/Scrapyard -10/Materials (discovered 3 exits: Min x2 / [*Sub]) -10/Subcaves History --------- Turn | Location | Event 11 | -11/Scrapyard | Discovered new exit (range 16) 111 | -11/Scrapyard | Entered Materials 156 | -10/Materials | Identified exit to Mines 244 | -10/Materials | Discovered new exit (range 2) 245 | -10/Materials | Entered Subcaves 246 | -10/Subcaves | Approached by a straggling Scientist 249 | -10/Subcaves | Learned Materials machine intel 309 | -10/Subcaves | Build established: Mutant 385 | -10/Subcaves | Shifting Twisted Machinery released Sub. Laser 502 | -10/Subcaves | Shifting Twisted Machinery released Riot Gun 698 | -10/Subcaves | Shifting Twisted Machinery released Flamer 750 | -10/Subcaves | Core integrity fell below 50% 778 | -10/Subcaves | Shifting Twisted Machinery released Riot Gun 1042 | -10/Subcaves | Core integrity fell below 20% 1047 | -10/Subcaves | Destroyed by SO-48G(R) with Subdweller Laser Last Messages --------------- GC-IAK(c): "I think it's somewhere east of here" 00977_ Subatomizers dissect the Corrupted Disposable Heat Sink. 00985_ Acquired 30 matter. 00988_ Subatomizers dissect the Corrupted Disposable Heat Sink. 01006_ Lgt. Treads destroyed. 01008_ Riot Gun destroyed. GC-IAK(c): "I think it's somewhere east of here" 01012_ Riot Gun destroyed. 01014_ Ion Engine destroyed. 01015_ Sub. Power Source melted. 01015_ KY-27D(R) destroyed. 01020_ Subatomizers dissect the Sub. Power Source. 01020_ Critical hit (Destroy). 01020_ Lgt. Treads destroyed. 01028_ SO-48G(R) affixes Scrap Shield Fragment to Scrap Shield. 01029_ Flamer destroyed. 01031_ Subatomizers dissect the Sub. Power Source. 01033_ Acquired Sub. Beam Cannon. 01035_ Sub. Laser destroyed. 01042_ Subatomizers dissect the Sub. Power Source. Map ----- +----------------------------------------------------+ | ?????????????????????????????????????????????????? | | ?????????????????????????????????????????????????? | | ?????????????????????????????????????????????????? | | ?????????????????????????????????????????????????? | | ?????????????????????????????????????????????????? | | ?????????????????????????????????????????????????? | | ?????????????????????????????????????????????????? | | ?????????????????????????????????????????????????? | | ?????????????????????????????????????????????????? | | ?????????????????????????????????????????????????? | | ?????????????????????????????????????????????????? | | ?????????????????????????????????????????????????? | | ?????????????????????????????????????????????????? | | ???????????????########??###?????????????????????? | | ???????????????# #?? ##????????????????????? | | ???????????????# ##?? ##???????????????????? | | ????????????#### #??? ???????????????????? | | ???????????## ###?## ????????????????????? | | ######?????# ##??## #????????????????????? | | # # ##????## #??? ?????????????????????? | | #?##### ##???? #?????????????????????? | | ### ##???? #?????????????????????? | | # ## #????# #####?????????????????? | | #### #### ##" #???## # ###""?????????????? | | ##?### ##??## # " #???# R! #??????????????? | | #???# #????# #"" #??## @%"" ""#??????????????? | | #???# #????# # ##??# #" # #???????????????? | | ###### ##??## # ##??# ""###??????????????????? | | ## #"" #### # #### "#???????????????????? | | # "# ## ## "#???????????????????? | | "" #### # " ##???????????????????? | | "## # # """ c##????????????????????? | | ####### " !=##?????????????????????? | | " #????# !*%=#??????????????????????? | | ""##????## # ##&%####???????????????????? | | "#??????### ### ###& #???????????????????? | | #""######??## ##" #?## ##??????????????????? | | #""""[ #???# ###" #?## ##?????????????????? | | """"" ##???###?## #??## #???????????#?????? | | """"""####???????## ##???## ##?????????# ?????? | | """" ### #????????#####?????# ! ##??????## ?????# | | " """## #??????????????????# "" ##?????# ????? | | """""" #???####???????????# "" #####?? ????? | | #""" "##???# ##??????????### ##? ##??? | | #"" #???## #?????????##?## #?? #??# | | ## #???# ##????????"#??# #?? ### | | ## #???# ###????## #??## ##??? | | # #???# ##???# "##??## ##????# | | ## ####### #???# ""##??# #?????# | | ## # ### ##?###""" #??# #????## | +----------------------------------------------------+ Best States ------------- Heat Dissipation 25 Energy Generation 10 Energy Capacity 250 Matter Stores 300 Matter Capacity 300 Sight Range 16 Terrain Scan Density 10 Evasion (%) 45 Recoil Reduction 2 Item Schematics ----------------- None Robot Schematics ------------------ None Fabricated ------------ Nothing Repaired ---------- Nothing Alien Tech Used ----------------- None Achievements -------------- None Challenges ------------ None Game ------ Seed ScrapoidHardenedMegatreads Manual? 0 Play Time 00:12:48 Cumulative 23.2 hours Start 2025.05.11 @ 14:10:46 End 2025.05.11 @ 14:22:45 Sessions 1 Manual Loads 0 Difficulty Rogue Special Mode None Game No. 34 Rogue 34 Adventurer 0 Explorer 0 Win Type - Total 0 Types 0/0/0/0/0/0/0/0/0/0 Lore% 11 Gallery% 24 Achievement% 20 Wizard Run 0 Options --------- Layout 0 ASCII 0 Keyboard 1 Movement Numpad Keybinds 0 Fullscreen 2 Font 24/Smallcaps Map View 76x50 Zoom Use 0% Tactical HUD 1 Map Filters NONE Filters NONE Steam 1 RUN: d20fb053-5443-4c7b-8501-cfb96fde094a